bitfinex/quotes_BTCUSD_20250211
["timestamp","ask_amount","ask_price","bid_price","bid_amount"]
[1739295945140,0.78518998,96336.0,96335.0,10.67229176]
[1739295945366,0.78518998,96336.0,96335.0,10.67329176]
[1739295946845,0.82958998,96336.0,96335.0,10.67229176]
[1739295947064,0.82958998,96336.0,96335.0,10.67329176]
[1739295947265,0.83458998,96336.0,96335.0,10.67329176]
[1739295947665,0.83458998,96336.0,96335.0,10.67229176]
[1739295947872,0.83458998,96336.0,96335.0,10.67329176]
[1739295948029,0.83458998,96336.0,96335.0,10.62929175]
[1739295948230,0.57448998,96336.0,96335.0,10.62929175]
[1739295950473,0.57448998,96336.0,96335.0,10.62939825]
[1739295953250,0.57448998,96336.0,96335.0,10.58539824]
[1739295953769,0.3256,96347.0,96335.0,10.58539824]
[1739295954008,0.1094,96379.0,96375.0,6.50881064]
[1739295954342,0.21190365,96376.0,96375.0,5.77660481]
[1739295954543,5.41754365,96376.0,96375.0,5.69223078]
[1739295954746,5.5200473,96376.0,96375.0,5.17242153]
[1739295954884,0.74084365,96376.0,96375.0,5.17242153]
[1739295955116,0.26602365,96376.0,96375.0,5.17242153]
[1739295955312,0.28682641,96376.0,96375.0,5.17242153]
[1739295955658,0.39622641,96376.0,96375.0,5.17342153]
[1739295956015,0.56134641,96376.0,96375.0,5.17342153]
[1739295956230,0.67173006,96376.0,96375.0,5.17342153]
[1739295956438,0.67173006,96376.0,96375.0,5.17442153]
[1739295957121,0.56233006,96376.0,96375.0,5.17342153]
[1739295957293,0.56233006,96376.0,96375.0,5.17442153]
[1739295957505,0.45982641,96376.0,96375.0,5.17342153]
[1739295957836,0.43682641,96376.0,96375.0,5.17342153]
[1739295958035,0.43682641,96376.0,96375.0,5.17442153]
[1739295958445,0.42894641,96376.0,96375.0,5.0656931]
[1739295958654,0.42894641,96376.0,96375.0,5.02169309]
[1739295958902,0.75454641,96376.0,96375.0,5.02069309]
[1739295959101,0.75454641,96376.0,96375.0,5.02169309]
[1739295959304,0.75454641,96376.0,96375.0,5.02069309]
[1739295959507,0.75454641,96376.0,96375.0,5.02169309]
[1739295959867,0.85705006,96376.0,96375.0,5.02169309]
[1739295960074,0.85695818,96376.0,96375.0,5.02069309]
[1739295960312,0.85695818,96376.0,96375.0,5.02169309]
[1739295960490,0.75445453,96376.0,96375.0,5.02169309]
[1739295961147,0.70445453,96376.0,96375.0,5.02069309]
[1739295961411,0.73533453,96376.0,96375.0,4.91555221]
[1739295961597,0.73533453,96376.0,96375.0,4.89480021]
[1739295961776,0.83783818,96376.0,96375.0,4.89580021]
[1739295961997,0.83783818,96376.0,96375.0,4.89480021]
[1739295962271,0.83783818,96376.0,96375.0,4.85337021]
[1739295962477,0.83783818,96376.0,96375.0,4.83261821]
[1739295962678,0.85183818,96376.0,96375.0,4.77136221]
[1739295962884,0.85183818,96376.0,96375.0,4.77236221]
[1739295963086,0.85183818,96376.0,96375.0,4.7283622]
[1739295963286,0.83783818,96376.0,96375.0,4.7273622]
[1739295963484,0.73533453,96376.0,96375.0,4.7273622]
[1739295963689,0.7495584,96376.0,96375.0,4.7283622]
[1739295964047,0.7265584,96376.0,96375.0,4.7283622]
[1739295964248,0.7125584,96376.0,96375.0,4.7263622]
[1739295964592,0.7275584,96376.0,96375.0,4.7273622]
[1739295964807,0.7196784,96376.0,96375.0,4.7283622]
[1739295965006,0.79779499,96376.0,96375.0,4.7283622]
[1739295965431,0.90719499,96376.0,96375.0,4.7273622]
[1739295965610,0.90719499,96376.0,96375.0,4.7283622]
[1739295966683,0.89931499,96376.0,96375.0,4.7283622]
[1739295968033,0.89931499,96376.0,96375.0,4.68436219]
[1739295968885,0.8290784,96376.0,96375.0,4.68436219]
[1739295969961,0.64338471,96376.0,96375.0,4.68436219]
[1739295970098,0.79902471,96376.0,96375.0,4.68436219]
[1739295970534,0.68962471,96376.0,96375.0,4.68436219]
[1739295971539,0.71069541,96376.0,96375.0,4.68436219]
[1739295971697,0.81319906,96376.0,96375.0,4.68436219]
[1739295972458,0.79819906,96376.0,96375.0,4.68236219]
[1739295972597,0.81319906,96376.0,96375.0,4.68336219]
[1739295972798,0.81319906,96376.0,96375.0,4.68436219]
[1739295973096,0.81319906,96376.0,96375.0,4.64036218]
[1739295974176,0.86670699,96376.0,96375.0,4.53367615]
[1739295974382,0.86670699,96376.0,96375.0,4.49596508]
[1739295974652,0.83619906,96376.0,96375.0,4.49596508]
[1739295975054,0.83619906,96376.0,96375.0,4.49618894]
[1739295975339,0.83619906,96376.0,96375.0,4.3933397]
[1739295975542,0.83619906,96376.0,96375.0,4.2285547]
[1739295976303,0.83619906,96376.0,96375.0,4.1870507]
[1739295976500,0.83619906,96376.0,96375.0,4.1034887]
[1739295976766,0.94559906,96376.0,96375.0,4.0645317]
[1739295977061,5.99559906,96376.0,96375.0,3.83943301]
[1739295977398,5.99559906,96376.0,96375.0,3.81868101]
[1739295977606,5.46399906,96376.0,96375.0,3.75642501]
[1739295978038,5.46399906,96376.0,96375.0,3.690673]
[1739295978241,5.44899906,96376.0,96375.0,3.690673]
[1739295978415,5.35459906,96376.0,96375.0,3.649169]
[1739295978621,1.83499906,96376.0,96375.0,3.649169]
[1739295979049,1.81999906,96376.0,96375.0,3.649169]
[1739295979367,1.83499906,96376.0,96375.0,3.649169]
[1739295981104,1.83499906,96376.0,96375.0,3.628417]
[1739295981723,1.83499906,96376.0,96375.0,3.571155]
[1739295981896,1.83499906,96376.0,96375.0,3.550403]
[1739295983069,1.83499906,96376.0,96375.0,3.48565099]
[1739295983260,1.83499906,96376.0,96375.0,3.44414699]
[1739295983485,1.83499906,96376.0,96375.0,3.42339499]
[1739295983787,1.83499906,96376.0,96375.0,3.38189099]
[1739295984736,0.83619906,96376.0,96375.0,3.36113899]
[1739295984941,0.83619906,96376.0,96375.0,3.29888299]
[1739295985138,5.88619906,96376.0,96375.0,3.27813099]
[1739295985422,5.99559906,96376.0,96375.0,3.21620824]
[1739295985700,5.99559906,96376.0,96375.0,3.19545624]
[1739295985901,5.99559906,96376.0,96375.0,3.16022351]
[1739295986124,5.99559906,96376.0,96375.0,3.13947151]
[1739295986908,5.99559906,96376.0,96375.0,3.07721551]
[1739295987252,6.00347906,96376.0,96375.0,3.03571151]
[1739295987680,6.00347906,96376.0,96375.0,1.74576408]
[1739295987681,6.03398699,96376.0,96375.0,1.74576408]
[1739295987882,6.03398699,96376.0,96375.0,1.73349688]
[1739295988109,6.03398699,96376.0,96375.0,1.55282687]
[1739295988309,6.03398699,96376.0,96375.0,0.8791608]
[1739295988511,6.13398699,96376.0,96375.0,0.56655941]
[1739295988713,6.11898699,96376.0,96375.0,0.14742653]
[1739295988830,0.1,96367.0,96341.0,0.08270615]
[1739295989040,0.40819865,96342.0,96341.0,0.08270615]
[1739295989263,0.305705,96336.0,96324.0,0.0831]
[1739295989462,0.40820865,96336.0,96324.0,0.0831]
[1739295990342,0.40825313,96336.0,96324.0,0.0831]
[1739295991395,0.41525313,96336.0,96324.0,0.0831]
[1739295991591,0.51775678,96336.0,96324.0,0.0831]
[1739295991796,0.51075678,96336.0,96324.0,0.0831]
[1739295992000,0.53875126,96336.0,96324.0,0.0831]
[1739295992894,0.86435126,96336.0,96324.0,0.0831]
[1739295993102,0.155722,96325.0,96324.0,0.03920649]
[1739295993283,0.29455945,96325.0,96324.0,0.03920649]
[1739295994371,0.30573,96320.0,96319.0,0.0481]
[1739295994656,0.40823365,96320.0,96319.0,0.0481]
[1739295994857,0.155766,96298.0,96296.0,0.0485]
[1739295995032,0.0155766,96297.0,96296.0,0.0485]
[1739295995196,0.25250365,96319.0,96296.0,0.0485]
[1739295995197,0.207685,96300.0,96296.0,0.0485]
[1739295995398,0.155763,96300.0,96296.0,0.0485]
[1739295996067,0.155763,96300.0,96297.0,0.0753]
[1739295996470,0.155766,96298.0,96297.0,0.0753]
[1739295997183,0.10250365,96300.0,96297.0,0.0753]
[1739295997358,0.155766,96298.0,96297.0,0.0753]
[1739295997958,0.155766,96298.0,96297.0,0.03129999]
[1739295998569,0.01025037,96299.0,96297.0,0.03129999]
[1739295998777,0.155766,96298.0,96297.0,0.03129999]
[1739295998980,0.157766,96298.0,96297.0,0.03129999]
[1739295999178,0.23093764,96298.0,96297.0,0.03129999]
[1739296000295,0.07517164,96298.0,96297.0,0.03129999]
[1739296000655,0.23093764,96298.0,96297.0,0.03129999]
[1739296000881,0.07517164,96298.0,96297.0,0.03129999]
[1739296001082,0.005,96298.0,96297.0,0.07979999]
[1739296001287,0.160766,96298.0,96297.0,0.07979999]
[1739296003084,0.160766,96298.0,96297.0,0.03579998]
[1739296004263,0.41326965,96298.0,96297.0,0.03579998]
[1739296004459,0.5157733,96298.0,96297.0,0.03579998]
[1739296004815,0.305768,96297.0,96296.0,0.00055162]
[1739296005137,0.40827165,96297.0,96296.0,0.00055162]
[1739296007068,0.41527165,96297.0,96296.0,0.00055162]
[1739296007275,0.40827165,96297.0,96296.0,0.00055162]
[1739296007473,0.5247753,96297.0,96296.0,0.00055162]
[1739296007719,0.5317753,96297.0,96296.0,0.00055162]
[1739296008084,0.5177753,96297.0,96296.0,0.00055162]
[1739296008289,0.5317753,96297.0,96296.0,0.00055162]
[1739296008489,0.305779,96290.0,96289.0,0.00375161]
[1739296008689,0.5107863,96290.0,96289.0,0.00380711]
[1739296010440,0.5177863,96290.0,96289.0,0.00380711]
[1739296010615,0.5317863,96290.0,96289.0,0.00380711]
[1739296012113,0.54744542,96290.0,96289.0,0.00380711]
[1739296013045,0.155782,96288.0,96287.0,0.0406071]
[1739296013252,0.25828565,96288.0,96287.0,0.0406071]
[1739296013460,0.155797,96279.0,96278.0,0.00022386]
[1739296013679,0.10250365,96288.0,96278.0,0.00022386]
[1739296013680,0.155795,96281.0,96278.0,0.00022386]
[1739296014122,0.155797,96279.0,96278.0,0.00022386]
[1739296014323,0.1921494,96279.0,96278.0,0.00022386]
[1739296015243,0.0363524,96279.0,96278.0,0.00022386]
[1739296015443,0.1921494,96279.0,96278.0,0.00022386]
[1739296015823,0.0363524,96279.0,96278.0,0.00022386]
[1739296016068,0.0363524,96279.0,96278.0,0.12492386]
[1739296016439,0.0423524,96279.0,96278.0,0.12492386]
[1739296016613,0.2121494,96279.0,96278.0,0.12492386]
[1739296017242,0.31465305,96279.0,96278.0,0.12492386]
[1739296017418,0.31465305,96279.0,96278.0,0.04722386]
[1739296017853,0.33039717,96279.0,96278.0,0.04722386]
[1739296018706,0.33039717,96279.0,96272.0,0.0777]
[1739296018860,0.155806,96273.0,96272.0,0.0777]
[1739296020045,0.009,96273.0,96272.0,0.0777]
[1739296020444,0.26330965,96273.0,96272.0,0.0777]
[1739296020631,0.155812,96270.0,96254.0,0.0777]
[1739296020833,0.155814,96269.0,96254.0,0.0777]
[1739296021036,0.06898027,96268.0,96254.0,0.0777]
[1739296021623,0.10750365,96273.0,96254.0,0.0777]
[1739296021821,0.10750365,96273.0,96256.0,0.0793]
[1739296021822,0.10250365,96272.0,96256.0,0.0793]
[1739296022029,0.25831365,96272.0,96256.0,0.0793]
[1739296022170,0.15581,96271.0,96256.0,0.0793]
[1739296022579,0.10250365,96272.0,96256.0,0.0793]
[1739296022790,0.009,96270.0,96256.0,0.0793]
[1739296023146,0.009,96270.0,96255.0,0.048]
[1739296023316,0.10250365,96272.0,96255.0,0.048]
[1739296023517,0.011,96271.0,96255.0,0.048]
[1739296023716,0.005,96269.0,96255.0,0.048]
[1739296024075,0.15,96283.0,96254.0,0.0001066]
[1739296024076,0.15,96281.0,96257.0,0.048]
[1739296024284,0.005,96270.0,96258.0,0.03236736]
[1739296024456,0.005,96270.0,96257.0,0.048]
[1739296024457,0.01937101,96268.0,96257.0,0.048]
[1739296026093,0.01937101,96268.0,96258.0,0.0793]
[1739296026335,0.01,96269.0,96258.0,0.0793]
[1739296026722,0.15,96279.0,96258.0,0.0793]
[1739296026896,0.005,96270.0,96258.0,0.0793]
[1739296027061,0.009,96268.0,96258.0,0.0793]
[1739296027473,0.15,96277.0,96258.0,0.0793]
[1739296027674,0.005,96269.0,96258.0,0.0793]
[1739296028096,0.207736,96276.0,96258.0,0.0793]
[1739296028298,0.22712799,96268.0,96258.0,0.03529999]
[1739296028496,0.155829,96259.0,96257.0,0.048]
[1739296028730,0.20777,96261.0,96257.0,0.048]
[1739296028731,0.155827,96260.0,96257.0,0.048]
[1739296028930,0.20777,96261.0,96257.0,0.048]
[1739296028931,0.155827,96261.0,96257.0,0.048]
[1739296029132,0.207757,96266.0,96257.0,0.048]
[1739296029309,0.155822,96264.0,96257.0,0.048]
[1739296029510,0.01937499,96259.0,96257.0,0.048]
[1739296030851,0.01937499,96258.0,96257.0,0.048]
[1739296031265,0.01937499,96258.0,96257.0,0.1273]
[1739296033088,0.02137499,96258.0,96257.0,0.08329999]
[1739296033249,0.02237499,96258.0,96257.0,0.08329999]
[1739296033766,0.02237499,96258.0,96254.0,0.0003206]
[1739296034108,0.04538849,96258.0,96254.0,0.0003206]
[1739296034290,0.02237499,96258.0,96254.0,0.0003206]
[1739296034617,0.02037499,96258.0,96254.0,0.0003206]
[1739296034787,0.01937499,96257.0,96254.0,0.0003206]
[1739296036015,0.01937499,96256.0,96254.0,0.0003206]
[1739296037527,0.02037499,96256.0,96255.0,0.243436]
[1739296037725,0.001,96256.0,96255.0,0.289536]
[1739296038056,0.001,96256.0,96255.0,0.1337]
[1739296038259,0.00022408,96268.0,96255.0,0.211936]
[1739296038494,0.00022408,96268.0,96259.0,0.0776]
[1739296038664,0.00022408,96268.0,96260.0,0.01]
[1739296039220,5.93e-06,96268.0,96260.0,0.01]
[1739296040169,0.00600593,96268.0,96260.0,0.01]
[1739296041001,0.00900593,96268.0,96260.0,0.01]
[1739296042563,0.00900593,96268.0,96262.0,0.01]
[1739296042783,0.00900593,96268.0,96265.0,0.0461]
[1739296043321,0.00900593,96268.0,96265.0,0.00209999]
[1739296043614,0.00300593,96268.0,96265.0,0.00209999]
[1739296043825,0.00600593,96268.0,96265.0,0.00209999]
[1739296044047,0.00900593,96268.0,96265.0,0.00209999]
[1739296044893,0.00600593,96268.0,96267.0,0.165816]
[1739296045068,0.00600593,96268.0,96267.0,0.35591965]
[1739296045201,5.93e-06,96268.0,96267.0,0.35591965]
[1739296045407,0.00600593,96268.0,96267.0,0.38835342]
[1739296045988,5.93e-06,96268.0,96267.0,0.38835342]
[1739296046354,5.93e-06,96268.0,96267.0,0.35591965]
[1739296047720,0.00100593,96268.0,96267.0,0.35591965]
[1739296048088,0.00100593,96268.0,96267.0,0.20010365]
[1739296048385,0.00100593,96268.0,96267.0,0.35591965]
[1739296049341,0.00100593,96268.0,96267.0,0.50375201]
[1739296052327,0.15,96296.0,96267.0,0.50375201]
[1739296052328,0.03707962,96296.0,96267.0,0.50375201]
[1739296052486,0.155773,96294.0,96273.0,0.155805]
[1739296052905,0.155773,96294.0,96274.0,0.155805]
[1739296053112,0.04674282,96295.0,96272.0,0.01]
[1739296053316,0.04674282,96295.0,96273.0,0.155805]
[1739296053317,0.155773,96294.0,96273.0,0.155805]
[1739296053694,0.155773,96294.0,96274.0,0.155804]
[1739296053893,0.22598477,96294.0,96274.0,0.155804]
[1739296054207,0.15075512,96293.0,96272.0,0.165807]
[1739296054388,0.1442349,96293.0,96273.0,0.155806]
[1739296054790,0.1442349,96293.0,96272.0,0.165807]
[1739296054791,0.155774,96293.0,96272.0,0.165807]
[1739296055033,0.207701,96292.0,96272.0,0.01]
[1739296055236,0.1287,96290.0,96272.0,0.01]
[1739296055392,0.155785,96287.0,96272.0,0.01]
[1739296055607,0.155786,96286.0,96272.0,0.01]
[1739296055841,0.336406,96290.0,96272.0,0.01]
[1739296056008,0.1287,96290.0,96272.0,0.01]
[1739296056214,0.155787,96286.0,96272.0,0.01]
[1739296057299,0.155784,96287.0,96272.0,0.01]
[1739296057745,0.23785054,96289.0,96272.0,0.01]
[1739296057966,0.014,96290.0,96278.0,0.01]
[1739296058171,0.006,96286.0,96279.0,0.0822]
[1739296058314,0.006,96286.0,96279.0,0.0922]
[1739296058786,0.019,96286.0,96279.0,0.0922]
[1739296059171,0.006,96286.0,96285.0,0.165787]
[1739296059370,0.00022387,96297.0,96295.0,0.01]
[1739296060403,0.00022387,96297.0,96296.0,0.02]
[1739296060690,0.00022387,96297.0,96296.0,0.01]
[1739296061283,0.00222387,96297.0,96296.0,0.01]
[1739296061894,0.00622387,96297.0,96296.0,0.01]
[1739296062390,0.00222387,96297.0,96296.0,0.01]
[1739296062618,0.00422387,96297.0,96296.0,0.01]
[1739296063117,0.00022387,96297.0,96290.0,0.12383235]
[1739296063343,0.002,96297.0,96290.0,0.12383235]
[1739296063492,0.006,96297.0,96290.0,0.12383235]
[1739296063694,0.207652,96315.0,96290.0,0.12383235]
[1739296063938,0.15575,96309.0,96290.0,0.12383235]
[1739296064370,0.00013347,96310.0,96290.0,0.12383235]
[1739296064371,0.15588047,96310.0,96290.0,0.12383235]
[1739296064547,0.002,96297.0,96290.0,0.27961135]
[1739296065044,0.0014921,96297.0,96290.0,0.12383235]
[1739296065184,0.0014921,96297.0,96290.0,0.27961135]
[1739296065386,0.00021866,96297.0,96290.0,0.27961135]
[1739296065630,0.00013347,96310.0,96291.0,0.155777]
[1739296066028,0.003,96297.0,96291.0,0.155777]
[1739296066405,0.15588047,96310.0,96290.0,0.12383235]
[1739296066616,0.002,96297.0,96290.0,0.27961035]
[1739296067249,0.16088047,96310.0,96290.0,0.27961035]
[1739296067457,0.07391346,96309.0,96290.0,0.27961035]
[1739296067793,0.07391346,96309.0,96290.0,0.28061035]
[1739296067985,0.07391346,96309.0,96290.0,0.23661034]
[1739296068387,0.10250365,96308.0,96290.0,0.08083234]
[1739296068604,0.155768,96297.0,96290.0,0.08083234]
[1739296068772,0.1264,96306.0,96290.0,0.07983234]
[1739296068992,0.10250365,96305.0,96290.0,0.07983234]
[1739296069158,0.001,96297.0,96290.0,0.07983234]
[1739296070184,0.001,96297.0,96277.0,0.0203306]
[1739296070388,0.001,96297.0,96277.0,0.1761306]
[1739296070389,0.156768,96297.0,96277.0,0.1761306]
[1739296070591,0.0364453,96296.0,96277.0,0.1761306]
[1739296070993,0.0364453,96296.0,96278.0,0.155798]
[1739296071599,0.0364453,96296.0,96277.0,0.0203306]
[1739296071801,0.0364453,96296.0,96279.0,0.155797]
[1739296071972,0.155765,96299.0,96278.0,0.155798]
[1739296072180,0.003,96297.0,96290.0,0.0001067]
[1739296072379,0.158768,96297.0,96290.0,0.0001067]
[1739296072617,0.15899208,96297.0,96290.0,0.0001067]
[1739296072827,0.15599208,96297.0,96290.0,0.0001067]
[1739296072982,0.002,96296.0,96277.0,0.13223729]
[1739296073186,0.002,96296.0,96278.0,0.155798]
[1739296073722,0.001,96296.0,96278.0,0.155798]
[1739296073911,0.00322408,96297.0,96278.0,0.155798]
[1739296073912,0.00022408,96297.0,96278.0,0.155798]
[1739296074453,0.00722408,96297.0,96278.0,0.155798]
[1739296074655,0.16299208,96297.0,96278.0,0.155798]
[1739296074812,0.16299208,96297.0,96277.0,0.17700839]
[1739296075013,0.00722408,96297.0,96278.0,0.155798]
[1739296075192,0.00722408,96297.0,96277.0,0.02120839]
[1739296075406,0.04429079,96297.0,96278.0,0.155798]
[1739296075812,0.03729079,96297.0,96278.0,0.155798]
[1739296076057,0.04429079,96297.0,96279.0,0.155796]
[1739296076260,0.00722408,96297.0,96279.0,0.155796]
[1739296076476,0.003,96296.0,96279.0,0.155796]
[1739296076895,0.16299208,96297.0,96279.0,0.155796]
[1739296077097,0.15599208,96297.0,96279.0,0.155796]
[1739296077278,0.01022408,96297.0,96279.0,0.155796]
[1739296077441,0.05813531,96296.0,96279.0,0.155796]
[1739296077652,0.06113531,96296.0,96279.0,0.155796]
[1739296078090,0.05813531,96296.0,96278.0,0.155798]
[1739296078625,0.01022408,96297.0,96270.0,0.14529518]
[1739296078830,0.00322408,96297.0,96260.0,0.29529518]
[1739296079033,0.00322408,96297.0,96279.0,0.155795]
[1739296079240,0.006,96296.0,96277.0,0.16373199]
[1739296079625,0.00322408,96297.0,96280.0,0.155795]
[1739296079775,0.03666721,96296.0,96280.0,0.155795]
[1739296079978,0.03966721,96296.0,96280.0,0.155795]
[1739296080175,0.03666721,96296.0,96280.0,0.155794]
[1739296080360,0.00022408,96297.0,96276.0,0.02119524]
[1739296080563,0.003,96296.0,96276.0,0.02119524]
[1739296080767,0.003,96296.0,96281.0,0.155792]
[1739296081167,0.006,96296.0,96281.0,0.155792]
[1739296081591,0.00722408,96297.0,96281.0,0.155792]
[1739296081793,0.003,96296.0,96276.0,0.02119524]
[1739296081992,0.003,96296.0,96281.0,0.155793]
[1739296082314,0.01659871,96295.0,96279.0,0.155795]
[1739296082670,0.01659871,96295.0,96279.0,0.155796]
[1739296082813,0.01659871,96295.0,96276.0,0.22892924]
[1739296083020,0.155787,96285.0,96267.0,0.0001067]
[1739296083215,0.10250365,96284.0,96267.0,0.0001067]
[1739296083585,0.155803,96276.0,96267.0,0.0001067]
[1739296083738,0.155805,96275.0,96267.0,0.0001067]
[1739296083918,0.0472,96280.0,96267.0,0.0001067]
[1739296083919,0.0203005,96274.0,96267.0,0.0001067]
[1739296084122,0.155811,96270.0,96267.0,0.0001067]
[1739296084326,0.0472,96280.0,96267.0,0.0001067]
[1739296084327,0.155815,96268.0,96267.0,0.0001067]
[1739296084550,0.06178305,96280.0,96267.0,0.0001067]
[1739296084709,0.207743,96273.0,96267.0,0.0001067]
[1739296085044,0.207747,96271.0,96267.0,0.0001067]
[1739296085244,0.0207747,96270.0,96267.0,0.0001067]
[1739296085451,0.1765867,96270.0,96267.0,0.0001067]
[1739296085623,0.155813,96269.0,96267.0,0.0001067]
[1739296086370,0.232015,96268.0,96267.0,0.0001067]
[1739296087612,0.238015,96268.0,96267.0,0.0001067]
[1739296087771,0.25539219,96268.0,96267.0,0.0001067]
[1739296087939,0.27017766,96268.0,96267.0,0.0001067]
[1739296088141,0.27017766,96268.0,96254.0,0.0003206]
[1739296088142,0.32511666,96268.0,96243.0,0.0001066]
[1739296088342,0.155819,96266.0,96244.0,0.155853]
[1739296088645,0.207755,96267.0,96245.0,0.155851]
[1739296088866,0.20776,96265.0,96243.0,0.0001511]
[1739296089093,0.155824,96263.0,96243.0,0.0001511]
[1739296089491,0.20776,96265.0,96243.0,0.0001511]
[1739296089701,0.0656144,96266.0,96244.0,0.155853]
[1739296090035,0.0472,96265.0,96246.0,0.155849]
[1739296090235,0.07110234,96264.0,96246.0,0.155849]
[1739296090442,0.07110234,96264.0,96244.0,0.155853]
[1739296090443,0.07110234,96264.0,96247.0,0.155848]
[1739296090766,0.07110234,96264.0,96248.0,0.155846]
[1739296091036,0.07110234,96264.0,96243.0,0.0001511]
[1739296091604,0.22692334,96264.0,96245.0,0.207801]
[1739296091815,0.09108932,96263.0,96245.0,0.155851]
[1739296092014,0.24691232,96263.0,96246.0,0.155849]
[1739296092216,0.207768,96261.0,96243.0,0.0001511]
[1739296092416,0.207772,96259.0,96243.0,0.0001511]
[1739296092642,0.03660573,96260.0,96243.0,0.0001511]
[1739296092847,0.155827,96261.0,96243.0,0.0001511]
[1739296093016,0.155827,96261.0,96241.0,0.207811]
[1739296093388,0.155835,96256.0,96238.0,0.0001065]
[1739296093529,0.155835,96256.0,96239.0,0.155861]
[1739296093730,0.15583,96259.0,96241.0,0.155858]
[1739296094032,0.155832,96257.0,96240.0,0.15586]
[1739296094241,0.155836,96255.0,96238.0,0.1559695]
[1739296094475,0.005,96256.0,96240.0,0.15586]
[1739296095087,0.005,96256.0,96241.0,0.155858]
[1739296095290,0.005,96256.0,96238.0,0.0001065]
[1739296095512,0.21278,96256.0,96238.0,0.0001065]
[1739296095655,0.155835,96256.0,96238.0,0.0001065]
[1739296095865,0.01344036,96256.0,96238.0,0.0001065]
[1739296096055,0.155833,96257.0,96238.0,0.0001065]
[1739296096260,0.011,96256.0,96238.0,0.0001065]
[1739296096459,0.16719245,96255.0,96238.0,0.0001065]
[1739296096670,0.01135545,96255.0,96238.0,0.0001065]
[1739296097709,0.01135545,96255.0,96243.0,0.0001067]
[1739296097905,0.01635545,96255.0,96243.0,0.0001067]
[1739296098219,0.01635545,96255.0,96231.0,0.357831]
[1739296098420,0.0496271,96254.0,96231.0,0.357831]
[1739296098628,0.0496271,96254.0,96231.0,0.15]
[1739296098806,0.0496271,96254.0,96231.0,0.357832]
[1739296099008,0.0496271,96254.0,96234.0,0.155869]
[1739296099435,0.0496271,96254.0,96233.0,0.1559776]
[1739296099755,0.0496271,96254.0,96233.0,0.0001066]
[1739296100112,0.0636271,96254.0,96233.0,0.1559776]
[1739296100312,0.0636271,96254.0,96233.0,0.0001066]
[1739296100313,0.15756253,96253.0,96233.0,0.0001066]
[1739296100523,0.363632,96251.0,96233.0,0.0001066]
[1739296100704,0.155849,96247.0,96233.0,0.0001066]
[1739296100913,0.207795,96249.0,96233.0,0.0001066]
[1739296101335,0.155847,96248.0,96233.0,0.0001066]
[1739296101557,0.08178307,96247.0,96233.0,0.0001066]
[1739296102545,0.08878307,96247.0,96233.0,0.0001066]
[1739296102745,0.10278307,96247.0,96233.0,0.0001066]
[1739296103074,0.10278307,96247.0,96225.0,0.155883]
[1739296103482,0.10278307,96247.0,96226.0,0.155881]
[1739296103688,0.26209747,96246.0,96220.0,0.207856]
[1739296103868,0.05429747,96246.0,96226.0,0.155882]
[1739296105915,0.05429747,96246.0,96222.0,0.02074128]
[1739296105916,0.06829747,96246.0,96222.0,0.02074128]
[1739296106121,0.155859,96241.0,96222.0,0.02074128]
[1739296106322,0.03266601,96240.0,96222.0,0.02074128]
[1739296108307,0.03266601,96240.0,96221.0,0.07983234]
[1739296108309,0.0813,96239.0,96221.0,0.07983234]
[1739296108688,0.237162,96239.0,96221.0,0.07983234]
[1739296109034,0.0813,96239.0,96221.0,0.07983234]
[1739296109455,0.207818,96238.0,96226.0,0.0001067]
[1739296109614,0.0340784,96237.0,96226.0,0.0001067]
[1739296110019,0.01936393,96236.0,96226.0,0.0001067]
[1739296111280,0.02536393,96236.0,96226.0,0.0001067]
[1739296111447,0.01936393,96235.0,96226.0,0.0001067]
[1739296112684,0.01936393,96234.0,96226.0,0.0001067]
[1739296112938,0.03021919,96233.0,96226.0,0.0001067]
[1739296113092,0.01936393,96234.0,96215.0,0.16397269]
[1739296113291,0.01936393,96234.0,96216.0,0.155899]
[1739296113494,0.01936393,96232.0,96216.0,0.155897]
[1739296113740,0.01936393,96232.0,96216.0,0.155899]
[1739296114780,0.01936393,96232.0,96216.0,0.15634392]
[1739296115133,0.005,96233.0,96216.0,0.15634392]
[1739296115134,0.01936393,96231.0,96216.0,0.15634392]
[1739296115318,0.01936393,96231.0,96216.0,0.00044492]
[1739296116119,0.01936393,96231.0,96216.0,0.15634292]
[1739296116371,0.01,96232.0,96216.0,0.15634292]
[1739296116539,0.014,96232.0,96216.0,0.15634292]
[1739296116761,0.01,96232.0,96216.0,0.15634292]
[1739296116961,0.03266601,96240.0,96228.0,0.155879]
[1739296117224,0.004,96231.0,96230.0,0.234776]
[1739296117342,0.014,96231.0,96230.0,0.38337965]
[1739296117546,0.15584,96252.0,96230.0,0.30733599]
[1739296117813,0.0473,96264.0,96230.0,0.30733599]
[1739296117814,0.004,96232.0,96230.0,0.22565356]
[1739296118016,0.004,96232.0,96230.0,0.11473233]
[1739296118191,0.004,96232.0,96230.0,0.27060833]
[1739296118394,0.004,96232.0,96230.0,0.07983234]
[1739296118692,0.004,96232.0,96231.0,0.155874]
[1739296119272,0.0789,96249.0,96233.0,0.155871]
[1739296119478,0.007,96240.0,96231.0,0.155874]
[1739296119634,0.007,96240.0,96231.0,0.155873]
[1739296119834,0.155847,96248.0,96232.0,0.155873]
[1739296120051,0.09221561,96249.0,96230.0,0.07983234]
[1739296120255,0.24806261,96249.0,96230.0,0.07983234]
[1739296120449,0.04698556,96248.0,96232.0,0.155873]
[1739296120677,0.003,96240.0,96232.0,0.155873]
[1739296121295,0.003,96240.0,96230.0,0.07983234]
[1739296121475,0.003,96240.0,96231.0,0.155874]
[1739296121702,0.003,96240.0,96232.0,0.001]
[1739296121915,0.008,96240.0,96232.0,0.001]
[1739296122118,0.00553,96239.0,96232.0,0.156872]
[1739296122315,0.003,96240.0,96232.0,0.155872]
[1739296122526,0.005,96240.0,96232.0,0.155872]
[1739296122925,0.008,96240.0,96232.0,0.155872]
[1739296123129,0.01940582,96239.0,96231.0,0.001]
[1739296123327,0.01940582,96239.0,96232.0,0.155872]
[1739296123643,0.01940582,96239.0,96231.0,0.001]
[1739296123853,0.02140582,96239.0,96231.0,0.155874]
[1739296124000,0.02140582,96239.0,96221.0,0.07983234]
[1739296124001,0.0288764,96239.0,96223.0,0.207848]
[1739296124206,0.0308764,96239.0,96227.0,0.15588]
[1739296124446,0.0308764,96239.0,96224.0,0.207846]